bitfinex-derivatives/quotes_BNBF0:USTF0_20250708
["timestamp","ask_amount","ask_price","bid_price","bid_amount"]
[1752017175709,1.45645579,659.9,659.65,0.26370629]
[1752017175910,1.45645579,659.89,659.65,0.26370629]
[1752017176112,1.45645579,659.88,659.65,0.26370629]
[1752017176312,1.45645579,659.87,659.65,0.26370629]
[1752017176513,1.45645579,659.86,659.65,0.26370629]
[1752017176713,1.45645579,659.85,659.65,0.26370629]
[1752017177013,1.45645579,659.84,659.65,0.26370629]
[1752017177308,1.45645579,659.83,659.65,0.26370629]
[1752017177514,1.45645579,659.82,659.65,0.26370629]
[1752017177810,1.45645579,659.81,659.65,0.26370629]
[1752017178012,1.69722118,660.04,659.65,0.26370629]
[1752017178314,1.45804998,660.03,659.65,0.26370629]
[1752017178513,1.45804998,660.02,659.65,0.26370629]
[1752017178808,1.45804998,660.01,659.65,0.26370629]
[1752017179113,1.45804998,660.0,659.65,0.26370629]
[1752017179313,1.45804998,659.99,659.65,0.26370629]
[1752017179513,1.45804998,659.98,659.65,0.26370629]
[1752017179714,1.45804998,659.97,659.65,0.26370629]
[1752017179914,1.45804998,659.96,659.65,0.26370629]
[1752017180114,1.45804998,659.95,659.65,0.26370629]
[1752017180315,1.45804998,659.94,659.65,0.26370629]
[1752017180515,1.45804998,659.93,659.65,0.26370629]
[1752017180715,1.69722118,660.03,659.65,0.26370629]
[1752017180716,1.45804998,659.92,659.65,0.26370629]
[1752017180914,1.45804998,659.91,659.65,0.26370629]
[1752017181109,1.45804998,659.9,659.65,0.26370629]
[1752017181312,1.69722118,660.03,659.65,0.26370629]
[1752017181313,1.45804998,659.89,659.66,2.455]
[1752017181516,1.45804998,659.88,659.66,2.455]
[1752017181817,1.45804998,659.87,659.66,2.455]
[1752017182111,1.45804998,659.86,659.66,2.455]
[1752017182315,1.45804998,659.85,659.66,2.455]
[1752017182513,1.45804998,659.84,659.66,2.455]
[1752017182712,1.45804998,659.83,659.66,2.455]
[1752017182918,1.45804998,659.82,659.66,2.455]
[1752017183111,1.45804998,659.81,659.66,2.455]
[1752017183316,1.45804998,659.8,659.66,2.455]
[1752017183613,1.45804998,659.79,659.66,2.455]
[1752017183812,1.69722118,660.02,659.66,2.455]
[1752017184015,1.45924109,660.01,659.66,2.455]
[1752017184213,1.45924109,660.0,659.66,2.455]
[1752017184517,1.45924109,659.99,659.66,2.455]
[1752017184717,1.45924109,659.98,659.66,2.455]
[1752017184917,1.45924109,659.97,659.66,2.455]
[1752017185119,1.45924109,659.96,659.66,2.455]
[1752017185318,1.69722118,660.02,659.66,2.455]
[1752017185319,1.45924109,659.95,659.66,2.455]
[1752017185521,1.45924109,659.94,659.66,2.455]
[1752017185715,1.45924109,659.93,659.66,2.455]
[1752017185916,1.45924109,659.92,659.66,2.455]
[1752017186217,1.45924109,659.91,659.66,2.455]
[1752017186421,1.45924109,659.9,659.66,2.455]
[1752017186622,1.45924109,659.89,659.66,2.455]
[1752017186920,1.45924109,659.88,659.66,2.455]
[1752017187122,1.45924109,659.87,659.66,2.455]
[1752017187318,1.45924109,659.86,659.66,2.455]
[1752017187621,1.45924109,659.85,659.66,2.455]
[1752017187819,1.45924109,659.84,659.66,2.455]
[1752017188021,1.45924109,659.83,659.66,2.455]
[1752017188218,1.45924109,659.82,659.66,2.455]
[1752017188421,1.45924109,659.81,659.66,2.455]
[1752017188618,1.45924109,659.8,659.66,2.455]
[1752017188819,1.45924109,659.79,659.66,2.455]
[1752017189022,1.45924109,659.78,659.66,2.455]
[1752017189224,1.45924109,659.77,659.66,2.455]
[1752017189420,1.45924109,659.76,659.66,2.455]
[1752017189622,1.45924109,659.75,659.66,2.455]
[1752017189823,1.45924109,659.74,659.66,2.455]
[1752017190120,1.45924109,659.73,659.66,2.455]
[1752017190321,1.45924109,659.72,659.66,2.455]
[1752017190520,1.45924109,659.71,659.66,2.455]
[1752017190820,1.45924109,659.7,659.66,2.455]
[1752017191019,1.45924109,659.69,659.66,2.455]
[1752017191226,1.45924109,659.68,659.66,2.455]
[1752017191421,1.69722118,659.89,659.66,2.455]
[1752017191625,1.45978024,659.88,659.66,2.455]
[1752017191827,1.45978024,659.87,659.66,2.455]
[1752017192026,1.45978024,659.86,659.66,2.455]
[1752017192327,1.45978024,659.85,659.66,2.455]
[1752017192526,1.45978024,659.84,659.66,2.455]
[1752017192825,1.45978024,659.83,659.66,2.455]
[1752017193022,1.45978024,659.82,659.66,2.455]
[1752017193324,1.45978024,659.81,659.66,2.455]
[1752017193525,1.45978024,659.8,659.66,2.455]
[1752017193722,1.45978024,659.79,659.66,2.455]
[1752017193929,1.45978024,659.78,659.66,2.455]
[1752017194129,1.45978024,659.77,659.66,2.455]
[1752017194426,1.45978024,659.76,659.66,2.455]
[1752017194623,1.45978024,659.75,659.66,2.455]
[1752017194826,1.45978024,659.74,659.66,2.455]
[1752017195029,1.45978024,659.73,659.66,2.455]
[1752017195327,1.45978024,659.72,659.66,2.455]
[1752017195629,1.45978024,659.71,659.66,2.455]
[1752017195831,1.45978024,659.7,659.66,2.455]
[1752017196031,1.45978024,659.69,659.66,2.455]
[1752017196232,1.45978024,659.68,659.66,2.455]
[1752017196429,1.69722118,659.92,659.66,2.455]
[1752017196636,1.45917065,659.91,659.66,2.455]
[1752017196934,1.45917065,659.9,659.66,2.455]
[1752017197134,1.45917065,659.89,659.66,2.455]
[1752017197433,1.45917065,659.88,659.66,2.455]
[1752017197629,1.45917065,659.87,659.66,2.455]
[1752017197835,1.45917065,659.86,659.66,2.455]
[1752017198032,1.45917065,659.85,659.66,2.455]
[1752017198235,1.45917065,659.84,659.66,2.455]
[1752017198534,1.45917065,659.83,659.66,2.455]
[1752017198734,1.45917065,659.82,659.66,2.455]
[1752017198933,1.45917065,659.81,659.66,2.455]
[1752017199129,1.45917065,659.8,659.66,2.455]
[1752017199333,1.45917065,659.79,659.66,2.455]
[1752017199533,1.45917065,659.78,659.66,2.455]
[1752017199733,1.45917065,659.77,659.66,2.455]
[1752017199935,1.45917065,659.76,659.66,2.455]
[1752017200131,1.45917065,659.75,659.66,2.455]
[1752017200331,1.45917065,659.74,659.66,2.455]
[1752017200631,1.45917065,659.73,659.66,2.455]
[1752017200833,1.45917065,659.72,659.66,2.455]
[1752017201031,1.45917065,659.71,659.66,2.455]
[1752017201232,1.45917065,659.7,659.66,2.455]
[1752017201435,1.45917065,659.69,659.66,2.455]
[1752017201732,1.69722118,659.93,659.66,2.455]
[1752017201936,1.45882192,659.92,659.66,2.455]
[1752017202232,1.45882192,659.91,659.66,2.455]
[1752017202433,1.45882192,659.9,659.66,2.455]
[1752017202635,1.45882192,659.89,659.66,2.455]
[1752017202934,1.45882192,659.88,659.66,2.455]
[1752017203132,1.45882192,659.87,659.66,2.455]
[1752017203435,1.45882192,659.86,659.66,2.455]
[1752017203732,1.45882192,659.85,659.66,2.455]
[1752017204034,1.45882192,659.84,659.66,2.455]
[1752017204232,1.45882192,659.83,659.66,2.455]
[1752017204433,1.45882192,659.82,659.66,2.455]
[1752017204633,1.45882192,659.81,659.66,2.455]
[1752017204831,1.45882192,659.8,659.66,2.455]
[1752017205031,1.45882192,659.79,659.66,2.455]
[1752017205230,1.45882192,659.78,659.66,2.455]
[1752017205437,1.45882192,659.77,659.66,2.455]
[1752017205730,1.45882192,659.76,659.66,2.455]
[1752017205936,1.45882192,659.75,659.66,2.455]
[1752017206135,1.69722118,659.93,659.66,2.455]
[1752017206136,1.45882192,659.74,659.66,2.455]
[1752017206334,1.45882192,659.73,659.65,0.26370629]
[1752017206632,1.45882192,659.72,659.65,0.26370629]
[1752017206834,1.45882192,659.71,659.65,0.26370629]
[1752017207037,1.45882192,659.7,659.65,0.26370629]
[1752017207238,1.69722118,659.93,659.65,0.26370629]
[1752017207534,1.45864003,659.92,659.65,0.26370629]
[1752017207737,1.45864003,659.91,659.65,0.26370629]
[1752017207934,1.45864003,659.9,659.65,0.26370629]
[1752017208236,1.45864003,659.89,659.65,0.26370629]
[1752017208433,1.45864003,659.88,659.65,0.26370629]
[1752017208635,1.45864003,659.87,659.65,0.26370629]
[1752017208833,1.45864003,659.86,659.65,0.26370629]
[1752017209035,1.45864003,659.85,659.65,0.26370629]
[1752017209232,1.45864003,659.84,659.65,0.26370629]
[1752017209433,1.45864003,659.83,659.65,0.26370629]
[1752017209638,1.45864003,659.82,659.65,0.26370629]
[1752017209837,1.45864003,659.81,659.66,1.701]
[1752017210138,1.45864003,659.8,659.66,1.701]
[1752017210336,1.45864003,659.79,659.66,1.701]
[1752017210535,1.45864003,659.78,659.66,1.701]
[1752017210841,2.26191208,660.06,659.66,1.701]
[1752017211042,1.70001904,659.93,659.66,1.701]
[1752017211242,1.45852202,659.92,659.66,1.701]
[1752017211437,1.45852202,659.91,659.66,1.701]
[1752017211739,1.45852202,659.9,659.66,1.701]
[1752017211937,1.45852202,659.89,659.66,1.701]
[1752017212241,1.45852202,659.88,659.66,1.701]
[1752017212538,1.45852202,659.87,659.66,1.701]
[1752017212737,1.45852202,659.86,659.66,1.701]
[1752017213037,1.45852202,659.85,659.66,1.701]
[1752017213241,1.45852202,659.84,659.66,1.701]
[1752017213441,1.45852202,659.83,659.66,1.701]
[1752017213735,1.45852202,659.82,659.66,1.701]
[1752017213941,1.45852202,659.81,659.66,1.701]
[1752017214236,1.45852202,659.8,659.66,1.701]
[1752017214440,1.45852202,659.79,659.66,1.701]
[1752017214639,1.45852202,659.78,659.66,1.701]
[1752017214838,1.45852202,659.77,659.66,1.701]
[1752017215041,1.45852202,659.76,659.66,1.701]
[1752017215238,1.45852202,659.75,659.66,1.701]
[1752017215441,1.45852202,659.74,659.66,1.701]
[1752017215642,1.45852202,659.73,659.66,1.701]
[1752017215839,1.45852202,659.72,659.66,1.701]
[1752017216140,1.45852202,659.71,659.66,1.701]
[1752017216342,1.70001904,659.92,659.66,1.701]
[1752017216542,1.45838274,659.91,659.66,1.701]
[1752017216741,1.45838274,659.9,659.66,1.701]
[1752017216939,1.45838274,659.89,659.66,1.701]
[1752017217146,1.45838274,659.88,659.66,1.701]
[1752017217344,1.45838274,659.87,659.66,1.701]
[1752017217545,1.45838274,659.86,659.66,1.701]
[1752017217743,1.45838274,659.85,659.66,1.701]
[1752017217941,1.45838274,659.84,659.66,1.701]
[1752017218140,1.45838274,659.83,659.66,1.701]
[1752017218345,1.45838274,659.82,659.66,1.701]
[1752017218545,1.45838274,659.81,659.66,1.701]
[1752017218746,1.45838274,659.8,659.66,1.701]
[1752017218948,1.45838274,659.79,659.66,1.701]
[1752017219146,1.45838274,659.78,659.66,1.701]
[1752017219446,1.45838274,659.77,659.66,1.701]
[1752017219741,1.45838274,659.76,659.66,1.701]
[1752017219945,1.45838274,659.75,659.66,1.701]
[1752017220144,1.45838274,659.74,659.66,1.701]
[1752017220341,1.45838274,659.73,659.66,1.701]
[1752017220545,1.45838274,659.72,659.66,1.701]
[1752017220842,1.45838274,659.71,659.66,1.701]
[1752017221052,1.6998567,659.93,659.66,1.701]
[1752017221243,1.45833904,659.92,659.66,1.701]
[1752017221446,1.45833904,659.91,659.66,1.701]
[1752017221645,1.45833904,659.9,659.66,1.701]
[1752017221847,1.45833904,659.89,659.66,1.701]
[1752017222046,1.45833904,659.88,659.66,1.701]
[1752017222244,1.45833904,659.87,659.66,1.701]
[1752017222445,1.45832313,659.86,659.66,1.701]
[1752017222645,1.45832313,659.85,659.66,1.701]
[1752017222849,1.45832313,659.84,659.66,1.701]
[1752017223047,1.45832313,659.83,659.66,1.701]
[1752017223350,1.45832313,659.82,659.66,1.701]
[1752017223645,1.45832313,659.81,659.66,1.701]
[1752017223847,1.45832313,659.8,659.66,1.701]
[1752017224145,1.45832313,659.79,659.66,1.701]
[1752017224344,1.45832313,659.78,659.66,1.701]
[1752017224548,1.45832313,659.77,659.66,1.701]
[1752017224753,1.45832313,659.76,659.66,1.701]
[1752017224954,1.45832313,659.75,659.66,1.701]
[1752017225151,1.45832313,659.74,659.66,1.701]
[1752017225449,1.45832313,659.73,659.66,1.701]
[1752017225651,1.45832313,659.72,659.66,1.701]
[1752017225855,1.45832313,659.71,659.66,1.701]
[1752017226154,1.45832313,659.7,659.66,1.701]
[1752017226350,1.45832313,659.69,659.66,1.701]
[1752017226649,1.69978724,659.96,659.66,1.701]
[1752017226853,1.45833743,659.95,659.66,1.701]
[1752017227054,1.45833743,659.94,659.66,1.701]
[1752017227250,1.45833743,659.93,659.66,1.701]
[1752017227456,1.45833743,659.92,659.66,1.701]
[1752017227656,1.45833743,659.91,659.66,1.701]
[1752017227855,1.45833743,659.9,659.66,1.701]
[1752017228057,1.45833743,659.89,659.66,1.701]
[1752017228253,1.45833743,659.88,659.66,1.701]
[1752017228552,1.45833743,659.87,659.66,1.701]
[1752017228751,1.45833743,659.86,659.66,1.701]
[1752017228954,1.45833743,659.85,659.66,1.701]
[1752017229152,1.45833743,659.84,659.66,1.701]
[1752017229357,1.45833743,659.83,659.66,1.701]
[1752017229554,1.45833743,659.82,659.66,1.701]
[1752017229853,1.45833743,659.81,659.66,1.701]
[1752017230057,1.45833743,659.8,659.66,1.701]
[1752017230257,1.45833743,659.79,659.66,1.701]
[1752017230459,1.45833743,659.78,659.66,1.701]
[1752017230754,1.45833743,659.77,659.66,1.701]
[1752017230957,1.45833743,659.76,659.66,1.701]
[1752017231153,1.45833743,659.75,659.66,1.701]
[1752017231458,1.45833743,659.74,659.66,1.701]
[1752017231658,1.45833743,659.73,659.66,1.701]
[1752017231859,1.45833743,659.72,659.66,1.701]
[1752017232155,1.45833743,659.71,659.66,1.701]
[1752017232353,1.45833743,659.7,659.66,1.701]
[1752017232559,1.45833743,659.69,659.66,1.701]
[1752017232759,1.69978724,659.95,659.66,1.701]
[1752017232959,3.15831444,659.94,659.66,1.701]
[1752017233159,1.4585272,659.93,659.66,1.701]
[1752017233360,1.4585272,659.92,659.66,1.701]
[1752017233558,1.4585272,659.91,659.66,1.701]
[1752017233756,1.4585272,659.9,659.66,1.701]
[1752017233961,1.4585272,659.89,659.66,1.701]
[1752017234158,1.4585272,659.88,659.66,1.701]
[1752017234360,1.4585272,659.87,659.66,1.701]
[1752017234558,1.4585272,659.86,659.66,1.701]
[1752017234757,1.4585272,659.85,659.66,1.701]
[1752017234958,1.4585272,659.84,659.66,1.701]
[1752017235160,1.4585272,659.83,659.66,1.701]
[1752017235362,1.4585272,659.82,659.66,1.701]
[1752017235661,1.69978724,659.93,659.66,1.701]
[1752017235662,1.4585272,659.81,659.66,1.701]
[1752017235861,1.4585272,659.8,659.66,1.701]
[1752017236059,1.4585272,659.79,659.66,1.701]
[1752017236262,1.4585272,659.78,659.66,1.701]
[1752017236558,1.4585272,659.77,659.66,1.701]
[1752017236763,1.4585272,659.76,659.66,1.701]
[1752017237059,1.4585272,659.75,659.66,1.701]
[1752017237360,1.4585272,659.74,659.66,1.701]
[1752017237564,1.4585272,659.73,659.66,1.701]
[1752017237761,1.4585272,659.72,659.66,1.701]
[1752017238065,1.4585272,659.71,659.66,1.701]
[1752017238366,1.4585272,659.7,659.66,1.701]
[1752017238663,1.4585272,659.69,659.66,1.701]
[1752017238864,1.69978724,659.92,659.66,1.701]
[1752017239063,1.45899141,659.91,659.66,1.701]
[1752017239362,1.45899141,659.9,659.66,1.701]
[1752017239666,1.45899141,659.89,659.66,1.701]
[1752017239860,1.45899141,659.88,659.66,1.701]
[1752017240067,1.45899141,659.87,659.66,1.701]
[1752017240361,1.45899141,659.86,659.66,1.701]
[1752017240562,1.45899141,659.85,659.66,1.701]
[1752017240761,1.45899141,659.84,659.66,1.701]
[1752017240965,1.45899141,659.83,659.66,1.701]
[1752017241162,1.45899141,659.82,659.66,1.701]
[1752017241462,1.45899141,659.81,659.66,1.701]
[1752017241663,1.45899141,659.8,659.66,1.701]
[1752017241862,1.45899141,659.79,659.66,1.701]
[1752017242062,1.45899141,659.78,659.66,1.701]
[1752017242267,1.45899141,659.77,659.66,1.701]
[1752017242463,1.69978724,659.94,659.66,1.701]
[1752017242464,1.45899141,659.76,659.66,1.701]
[1752017242669,1.45899141,659.75,659.66,1.701]
[1752017242869,1.45899141,659.74,659.66,1.701]
[1752017243169,1.45899141,659.73,659.66,1.701]
[1752017243367,1.45899141,659.72,659.66,1.701]
[1752017243565,1.45899141,659.71,659.66,1.701]
[1752017243765,1.45899141,659.7,659.66,1.701]
[1752017244067,1.45899141,659.69,659.66,1.701]
[1752017244266,1.45899141,659.68,659.66,1.701]
[1752017244470,1.45899141,659.67,659.66,1.701]
[1752017247869,1.45899141,659.67,659.65,0.26370629]
[1752017248069,1.45899141,659.66,659.65,0.26370629]
[1752017252573,1.46177999,659.66,659.65,0.26370629]
[1752017259487,1.70381585,659.83,659.65,0.26370629]
[1752017259786,1.70381585,659.85,659.65,0.26370629]
[1752017261084,1.70381585,659.87,659.65,0.26370629]
[1752017265885,2.26191208,659.99,659.65,0.26370629]
[1752017265886,1.70381585,659.86,659.65,0.26370629]
[1752017270896,1.70381585,659.85,659.65,0.26370629]
[1752017273198,1.70381585,659.86,659.65,0.26370629]
[1752017275098,1.70381585,659.85,659.65,0.26370629]
[1752017275292,1.70381585,659.86,659.65,0.26370629]
[1752017276794,1.70381585,659.85,659.65,0.26370629]
[1752017282398,1.70381585,659.87,659.65,0.26370629]
[1752017283096,1.70381585,659.86,659.65,0.26370629]
[1752017285895,1.70381585,659.86,659.66,1.632]
[1752017292300,1.70381585,659.85,659.66,1.632]
[1752017296315,1.70381585,659.86,659.66,1.632]
[1752017306317,1.70381585,659.85,659.66,1.632]
[1752017308816,1.70381585,659.87,659.66,1.632]
[1752017312520,1.70381585,659.86,659.66,1.632]
[1752017316522,1.70381585,659.97,659.66,1.632]
[1752017316825,1.70381585,659.86,659.66,1.632]
[1752017317522,1.70381585,659.89,659.66,1.632]
[1752017319331,1.70381585,659.9,659.66,1.632]
[1752017320630,1.70381585,659.91,659.66,1.632]
[1752017322329,1.70381585,659.92,659.66,1.632]
[1752017322935,1.70381585,659.92,659.65,0.26370629]
[1752017323533,1.70381585,659.84,659.65,0.26370629]
[1752017326238,1.70381585,659.8,659.65,0.26370629]
[1752017330141,1.70381585,659.82,659.65,0.26370629]
[1752017331541,1.70381585,659.83,659.65,0.26370629]
[1752017332638,1.70381585,659.84,659.65,0.26370629]
[1752017334037,1.70381585,659.83,659.65,0.26370629]
[1752017334437,1.70381585,659.84,659.65,0.26370629]
[1752017337846,1.70381585,659.84,659.63,1.978]
[1752017340045,1.70381585,659.83,659.63,1.978]
[1752017341546,1.70381585,659.82,659.63,1.978]
[1752017342249,1.70381585,659.89,659.63,1.978]
[1752017343050,1.70381585,659.87,659.63,1.978]
[1752017343645,1.70381585,659.84,659.63,1.978]
[1752017345348,1.70381585,659.85,659.63,1.978]
[1752017349055,1.70381585,659.85,659.57,0.26372827]
[1752017350953,1.70381585,659.84,659.57,0.26372827]
[1752017351958,1.70381585,659.78,659.57,0.26372827]
[1752017352160,1.70381585,659.79,659.57,0.26372827]
[1752017352359,1.70381585,659.76,659.57,0.26372827]
[1752017352561,1.70381585,659.76,659.58,2.064]
[1752017360267,1.70381585,659.75,659.58,2.064]
[1752017361971,1.70381585,659.73,659.58,2.064]
[1752017364574,1.70381585,659.76,659.58,2.064]
[1752017365676,1.70381585,659.77,659.58,2.064]
[1752017367271,1.70381585,659.76,659.58,2.064]
[1752017368672,1.70381585,659.77,659.45,0.26376325]
[1752017369476,1.70381585,659.76,659.45,0.26376325]
[1752017370975,1.70381585,659.78,659.45,0.26376325]
[1752017371472,1.70381585,659.77,659.45,0.26376325]
[1752017371973,1.70381585,659.77,659.46,2.364]
[1752017373373,1.70381585,659.76,659.46,2.364]
[1752017374379,1.70381585,659.75,659.46,2.364]
[1752017375280,1.70381585,659.74,659.46,2.364]
[1752017378481,1.70381585,659.73,659.46,2.364]
[1752017380882,1.70381585,659.71,659.46,2.364]
[1752017384286,1.70381585,659.72,659.46,2.364]
[1752017384585,1.70381585,659.7,659.46,2.364]
[1752017391389,1.70381585,659.69,659.46,2.364]
[1752017391990,1.70381585,659.77,659.46,2.364]
[1752017392293,1.70381585,659.78,659.46,2.364]
[1752017393395,1.70381585,659.77,659.46,2.364]
[1752017394397,1.70381585,659.76,659.46,2.364]
[1752017398302,1.70381585,659.75,659.46,2.364]
[1752017399198,1.70381585,659.76,659.46,2.364]
[1752017401706,1.70381585,659.75,659.46,2.364]
[1752017402004,1.70381585,659.7,659.46,2.364]
[1752017402401,1.70381585,659.69,659.46,2.364]
[1752017403110,1.70381585,659.73,659.46,2.364]
[1752017408916,1.70381585,659.75,659.46,2.364]
[1752017414923,0.26373027,660.37,659.46,2.364]
[1752017414924,1.70381585,659.73,659.46,2.364]
[1752017415624,1.70381585,659.74,659.46,2.364]
[1752017418428,1.70381585,659.75,659.46,2.364]
[1752017418729,1.70381585,659.74,659.46,2.364]
[1752017419025,1.70381585,659.74,659.45,0.26376325]
[1752017421326,1.70381585,659.74,659.46,1.807]
[1752017425627,1.70381585,659.73,659.46,1.807]
[1752017425931,1.70381585,659.72,659.46,1.807]
[1752017427028,1.70381585,659.71,659.46,1.807]
[1752017427227,1.70381585,659.72,659.46,1.807]
[1752017428829,1.70381585,659.71,659.46,1.807]
[1752017446356,1.70381585,659.76,659.46,1.807]
[1752017446555,1.70381585,659.77,659.46,1.807]
[1752017446853,1.70381585,659.81,659.46,1.807]
[1752017449662,1.70381585,659.83,659.46,1.807]
[1752017450059,1.70381585,659.86,659.46,1.807]
[1752017450260,1.70381585,659.88,659.46,1.807]
[1752017450460,1.70381585,659.91,659.46,1.807]
[1752017451755,1.70381585,659.92,659.46,1.807]
[1752017453360,1.70381585,659.93,659.46,1.807]
[1752017456165,3.40006648,660.33,659.46,1.807]
[1752017456166,1.70381585,659.92,659.46,1.807]
[1752017456468,1.70381585,659.92,659.45,0.26376325]
[1752017456662,1.70381585,659.89,659.45,0.26376325]
[1752017459271,1.70381585,659.88,659.45,0.26376325]
[1752017459471,1.70381585,659.89,659.45,0.26376325]
[1752017459671,1.70381585,659.89,659.46,1.605]
[1752017460772,1.70381585,659.88,659.46,1.605]
[1752017461772,1.70381585,659.85,659.46,1.605]
[1752017462276,1.70381585,659.86,659.46,1.605]
[1752017462570,1.70381585,659.85,659.46,1.605]
[1752017462770,1.70381585,659.86,659.46,1.605]
[1752017463675,0.26371828,660.27,659.46,1.605]
[1752017463676,1.70381585,659.84,659.46,1.605]
[1752017464174,1.70381585,659.85,659.46,1.605]
[1752017465177,1.70381585,659.86,659.46,1.605]
[1752017468378,1.70381585,659.84,659.46,1.605]
[1752017469276,1.70381585,659.85,659.46,1.605]
[1752017485989,1.70381585,659.86,659.46,1.605]
[1752017487792,1.70381585,659.87,659.46,1.605]
[1752017487996,1.70381585,659.9,659.46,1.605]
[1752017495098,1.70381585,659.89,659.46,1.605]
[1752017496001,1.70381585,659.88,659.46,1.605]
[1752017496899,1.70381585,659.89,659.46,1.605]
[1752017497403,1.70381585,659.88,659.46,1.605]
[1752017498401,1.70381585,659.87,659.46,1.605]
[1752017502403,1.70381585,659.86,659.46,1.605]
[1752017503309,1.70381585,659.87,659.46,1.605]
[1752017504507,1.70381585,659.86,659.46,1.605]
[1752017505610,1.70381585,659.86,659.45,0.26376325]
[1752017506810,1.70381585,659.85,659.45,0.26376325]
[1752017507611,0.26371828,660.27,659.45,0.26376325]
[1752017507612,1.70381585,659.86,659.45,0.26376325]
[1752017508008,1.70381585,659.86,659.46,2.333]
[1752017508313,1.70381585,659.85,659.46,2.333]
[1752017509310,1.70381585,659.84,659.46,2.333]
[1752017509909,1.70381585,659.85,659.46,2.333]
[1752017510209,1.70381585,659.84,659.46,2.333]
[1752017510409,1.70381585,659.85,659.46,2.333]
[1752017510608,2.26191208,659.96,659.46,2.333]
[1752017510609,1.70381585,659.84,659.46,2.333]
[1752017514111,1.70381585,659.85,659.46,2.333]
[1752017517320,1.70381585,659.84,659.46,2.333]
[1752017519317,1.70381585,659.85,659.46,2.333]
[1752017522123,1.70381585,659.86,659.46,2.333]
[1752017523819,1.70381585,659.85,659.46,2.333]
[1752017525920,1.70381585,659.86,659.46,2.333]
[1752017529128,1.70381585,659.85,659.46,2.333]
[1752017532029,1.70381585,659.84,659.46,2.333]
[1752017534530,1.70282802,659.84,659.46,2.333]
[1752017535826,1.70282802,659.83,659.46,2.333]
[1752017541230,1.70282802,659.82,659.46,2.333]
[1752017546339,1.70282802,659.81,659.46,2.333]
[1752017551040,1.70282802,659.88,659.46,2.333]
[1752017552738,1.70282802,659.89,659.46,2.333]
[1752017553037,1.70282802,659.94,659.46,2.333]
[1752017553438,1.70282802,659.96,659.46,2.333]
[1752017555143,1.70282802,659.96,659.5,0.2636933]
[1752017556342,1.70282802,659.97,659.5,0.2636933]
[1752017560346,2.26191208,660.15,659.5,0.2636933]
[1752017560347,1.70282802,659.98,659.5,0.2636933]
[1752017560945,1.70282802,659.94,659.5,0.2636933]
[1752017562347,1.70282802,659.92,659.5,0.2636933]
[1752017562546,1.70282802,659.93,659.5,0.2636933]
[1752017567251,1.70282802,659.93,659.51,2.321]
[1752017571752,1.70282802,659.92,659.51,2.321]
[1752017573453,1.70282802,659.93,659.51,2.321]
[1752017574154,1.70282802,659.92,659.51,2.321]
[1752017575653,1.70282802,659.91,659.51,2.321]
[1752017576453,1.70282802,659.92,659.51,2.321]
[1752017581160,1.70282802,659.94,659.51,2.321]
[1752017583255,3.40006648,660.19,659.51,2.321]
[1752017583256,0.26370828,660.38,659.51,2.321]
[1752017587563,1.70144548,659.94,659.51,2.321]
[1752017588762,1.70144548,659.93,659.51,2.321]
[1752017589759,1.70144548,659.94,659.51,2.321]
[1752017591062,1.70144548,659.93,659.51,2.321]
[1752017599573,1.70144548,659.91,659.51,2.321]
[1752017602373,1.70144548,659.9,659.51,2.321]
[1752017605272,1.70144548,659.89,659.51,2.321]
[1752017608376,1.70144548,659.89,659.5,0.2636933]
[1752017609374,1.70144548,659.88,659.5,0.2636933]
[1752017609580,1.70144548,659.89,659.5,0.2636933]
[1752017609880,1.70144548,659.9,659.5,0.2636933]
[1752017611678,1.70144548,659.9,659.51,1.977]
[1752017612378,1.70144548,659.89,659.51,1.977]
[1752017619788,1.70144548,659.88,659.51,1.977]